bitfinex/quotes_SOLUSD_20220306
["timestamp","ask_amount","ask_price","bid_price","bid_amount"]
[1646608223691,5.853,85.453,85.373,1.83894252]
[1646608224090,17.5737,85.45,85.38,17.5719]
[1646608224290,5.853,85.449,85.38,17.5719]
[1646608225291,5.853,85.453,85.38,17.5719]
[1646608225493,117.0,85.452,85.38,17.5719]
[1646608225693,117.0,85.45,85.38,17.5719]
[1646608225892,5.853,85.449,85.38,17.5719]
[1646608226096,17.5709,85.44,85.38,17.5719]
[1646608226296,45.68742815,85.439,85.38,17.5719]
[1646608228700,5.854,85.438,85.38,17.5719]
[1646608232026,5.854,85.438,85.373,1.83894252]
[1646608232027,117.0,85.437,85.373,1.83894252]
[1646608232228,17.5733,85.43,85.371,24.6312]
[1646608232429,5.854,85.429,85.371,24.6312]
[1646608232828,117.0,85.428,85.37,17.5733]
[1646608233127,122.854,85.427,85.37,17.5733]
[1646608233626,5.854,85.427,85.37,17.5733]
[1646608233929,45.6899807,85.426,85.37,17.5733]
[1646608234126,17.5749,85.42,85.354,1.83894252]
[1646608234527,117.0,85.419,85.354,1.83894252]
[1646608235329,5.855,85.425,85.351,100.7329]
[1646608235330,117.0,85.409,85.351,100.7329]
[1646608235529,123.33,85.409,85.351,24.6496]
[1646608235832,122.856,85.408,85.351,24.6496]
[1646608236233,122.856,85.408,85.34,17.5803]
[1646608236234,17.5798,85.4,85.34,17.5803]
[1646608236433,117.0,85.399,85.34,17.5803]
[1646608236629,117.0,85.399,85.335,24.5478]
[1646608236831,117.0,85.399,85.324,47.76925909]
[1646608237030,117.0,85.399,85.321,47.0067]
[1646608237031,119.41336752,85.399,85.321,47.0067]
[1646608237230,117.0,85.397,85.321,47.0067]
[1646608237429,58.6148,85.4,85.321,47.0067]
[1646608237430,117.0,85.389,85.321,47.0067]
[1646608237629,122.857,85.388,85.321,47.0067]
[1646608237829,45.6899807,85.387,85.321,47.0067]
[1646608238028,5.857,85.386,85.321,47.0067]
[1646608238431,5.857,85.386,85.33,17.5837]
[1646608239831,5.857,85.386,85.34,17.5816]
[1646608240030,5.857,85.405,85.34,17.5816]
[1646608240231,5.856,85.427,85.34,17.5816]
[1646608240831,62.35060933,85.405,85.34,17.5816]
[1646608242632,69.90060933,85.405,85.33,17.5836]
[1646608242831,5.856,85.404,85.33,17.5836]
[1646608243131,117.0,85.399,85.33,17.5836]
[1646608243430,117.0,85.397,85.312,14.12690993]
[1646608243631,117.0,85.395,85.312,14.12690993]
[1646608243831,117.0,85.393,85.312,14.12690993]
[1646608244135,117.0,85.389,85.312,14.12690993]
[1646608244331,117.0,85.389,85.32,55.98794561]
[1646608245031,117.0,85.387,85.32,55.98794561]
[1646608245231,124.29,85.387,85.32,55.98794561]
[1646608245831,5.857,85.386,85.32,55.98794561]
[1646608246635,29.02679952,85.39,85.32,55.98794561]
[1646608248132,29.02679952,85.39,85.34,17.5822]
[1646608248335,5.857,85.389,85.341,53.33152698]
[1646608249534,5.857,85.389,85.34,17.5822]
[1646608249733,14.017,85.389,85.34,17.5822]
[1646608250135,8.16,85.389,85.34,17.5822]
[1646608250734,29.02679952,85.39,85.34,17.5822]
[1646608253241,5.857,85.389,85.34,16.0822]
[1646608254443,29.02679952,85.39,85.35,17.5801]
[1646608258144,5.856,85.403,85.35,17.5801]
[1646608258344,5.856,85.423,85.351,0.66476406]
[1646608258643,1.54193586,85.432,85.37,17.5702]
[1646608258845,1.54193586,85.436,85.37,17.5702]
[1646608259042,50.09730458,85.427,85.371,50.45538174]
[1646608259648,50.09730458,85.427,85.38,17.5736]
[1646608261944,5.854,85.426,85.38,17.5736]
[1646608262148,50.09730458,85.427,85.38,17.5736]
[1646608262744,5.854,85.426,85.38,17.5736]
[1646608263167,5.854,85.426,85.36,58.5672]
[1646608263349,1.54193586,85.423,85.352,23.5603]
[1646608263552,1.54193586,85.418,85.352,23.5603]
[1646608263751,5.855,85.417,85.352,23.5603]
[1646608264154,1.54193586,85.42,85.353,5.855]
[1646608264453,1.54193586,85.421,85.36,17.5778]
[1646608264657,5.855,85.42,85.36,17.5778]
[1646608264853,1.54193586,85.421,85.36,17.5778]
[1646608265456,5.855,85.42,85.36,17.5778]
[1646608266859,5.855,85.421,85.36,17.5778]
[1646608267262,1.54193586,85.423,85.361,5.855]
[1646608267461,1.54193586,85.43,85.37,17.5716]
[1646608267659,5.854,85.429,85.37,17.5716]
[1646608267859,1.54193586,85.435,85.371,5.854]
[1646608268059,1.54193586,85.436,85.371,5.854]
[1646608268460,60.36533618,85.435,85.38,17.5724]
[1646608270062,60.36533618,85.435,85.36,58.5787]
[1646608270063,117.0,85.433,85.361,5.854]
[1646608270265,1.54193586,85.429,85.361,5.854]
[1646608270464,1.54193586,85.415,85.338,5.855]
[1646608270675,31.01207267,85.412,85.337,86.97906008]
[1646608270880,117.0,85.409,85.337,86.97906008]
[1646608271080,122.856,85.408,85.34,17.5821]
[1646608272084,122.856,85.408,85.341,5.856]
[1646608272282,122.856,85.408,85.35,17.5797]
[1646608273485,122.856,85.408,85.351,57.0368351]
[1646608274782,17.5812,85.4,85.35,17.5797]
[1646608274989,117.0,85.398,85.338,5.856]
[1646608275184,5.856,85.397,85.338,5.856]
[1646608275785,60.36533618,85.396,85.339,62.48695215]
[1646608275987,60.36533618,85.396,85.34,5.857]
[1646608276185,5.857,85.407,85.34,23.4391]
[1646608276386,1.54193586,85.416,85.34,23.4391]
[1646608276587,1.54193586,85.417,85.34,23.4391]
[1646608277185,53.66671747,85.416,85.34,17.5821]
[1646608277386,55.20865333,85.416,85.34,17.5821]
[1646608277591,53.66671747,85.416,85.34,17.5821]
[1646608278189,55.20865333,85.416,85.34,17.5821]
[1646608278389,17.5785,85.41,85.34,17.5821]
[1646608278589,5.856,85.409,85.34,17.5821]
[1646608279890,5.856,85.415,85.34,17.5821]
[1646608280292,47.81071747,85.416,85.36,17.578]
[1646608280592,47.81071747,85.416,85.361,59.72656916]
[1646608281490,47.81071747,85.416,85.37,17.576]
[1646608282291,47.81071747,85.416,85.361,59.72656916]
[1646608282495,47.81071747,85.416,85.351,48.5748]
[1646608283091,5.855,85.415,85.352,5.855]
[1646608283293,7.39693586,85.415,85.36,17.5777]
[1646608284194,17.5787,85.41,85.36,17.5777]
[1646608284394,5.855,85.409,85.36,17.5777]
[1646608286894,17.5787,85.41,85.36,17.5777]
[1646608287799,5.855,85.409,85.36,17.5777]
[1646608289623,117.0,85.399,85.351,48.5748]
[1646608289826,122.856,85.398,85.351,48.5748]
[1646608290024,117.0,85.398,85.351,48.5748]
[1646608290428,2.41330218,85.397,85.31,13.94]
[1646608290627,1.54193586,85.386,85.311,53.98006588]
[1646608290825,17.5843,85.38,85.33,17.5843]
[1646608291025,47.81071747,85.379,85.329,46.21313378]
[1646608291225,47.81071747,85.379,85.305,48.8923]
[1646608291226,5.857,85.378,85.305,48.8923]
[1646608292024,17.5856,85.37,85.31,58.613]
[1646608292225,17.5856,85.37,85.311,50.03552222]
[1646608293027,47.81071747,85.379,85.331,62.98776177]
[1646608293627,117.0,85.378,85.31,58.613]
[1646608294027,17.5857,85.37,85.32,17.5849]
[1646608294527,17.5857,85.37,85.321,54.58131683]
[1646608295827,17.5857,85.37,85.33,17.5844]
[1646608296731,47.81071747,85.379,85.33,17.5844]
[1646608296929,17.5845,85.38,85.34,17.5821]
[1646608297130,5.857,85.393,85.34,17.5821]
[1646608297329,5.857,85.393,85.321,54.58131683]
[1646608297733,17.5833,85.38,85.321,54.58131683]
[1646608298031,60.47034866,85.379,85.33,17.5838]
[1646608298931,5.857,85.378,85.33,17.5838]
[1646608299532,17.5855,85.37,85.33,16.6838]
[1646608300134,17.5855,85.37,85.321,54.58131683]
[1646608300334,17.5855,85.37,85.32,17.5859]
[1646608300936,5.857,85.378,85.32,17.5859]
[1646608301134,1.54193586,85.4,85.321,117.51462791]
[1646608301335,5.857,85.399,85.323,117.60068417]
[1646608301535,5.857,85.399,85.341,0.60068417]
[1646608301734,5.856,85.409,85.34,13.94]
[1646608301935,58.54436223,85.408,85.341,77.97599587]
[1646608302135,58.54436223,85.408,85.341,47.8322]
[1646608302337,5.856,85.407,85.341,47.8322]
[1646608302536,117.0,85.406,85.341,47.8322]
[1646608302735,1.54193586,85.4,85.341,47.8322]
[1646608302935,117.0,85.389,85.341,47.8322]
[1646608303135,117.0,85.389,85.31,13.94]
[1646608303339,32.83304662,85.388,85.32,58.6067]
[1646608303735,32.83304662,85.388,85.331,46.38397252]
[1646608303936,5.857,85.387,85.331,46.38397252]
[1646608305137,5.857,85.387,85.34,17.5804]
[1646608305338,1.54193586,85.403,85.341,117.0]
[1646608305538,1.54193586,85.417,85.341,141.8357]
[1646608305737,5.856,85.416,85.341,141.8357]
[1646608305941,5.856,85.416,85.342,1.83894252]
[1646608306139,62.31558281,85.415,85.351,117.0]
[1646608306337,62.31558281,85.415,85.355,117.0]
[1646608307040,62.31558281,85.415,85.354,58.1312286]
[1646608307041,1.54193586,85.431,85.361,117.0]
[1646608307241,1.54193586,85.434,85.363,117.0]
[1646608307541,1.54193586,85.444,85.371,117.0]
[1646608307742,1.54193586,85.446,85.373,117.0]
[1646608307941,46.39666732,85.444,85.374,49.13871605]
[1646608308142,46.39666732,85.444,85.38,58.5565]
[1646608308544,46.39666732,85.444,85.39,17.567]
[1646608309944,1.54193586,85.451,85.401,117.0]
[1646608310145,1.54193586,85.451,85.402,0.59617032]
[1646608310343,1.54193586,85.472,85.401,117.0]
[1646608310543,1.54193586,85.471,85.4,13.94]
[1646608310946,60.5774122,85.466,85.4,13.94]
[1646608311545,117.0,85.459,85.4,13.94]
[1646608311750,5.852,85.458,85.38,13.94]
[1646608311943,1.54193586,85.449,85.38,13.94]
[1646608312145,1.54193586,85.446,85.38,13.94]
[1646608312343,5.853,85.445,85.38,13.94]
[1646608312545,36.65199665,85.444,85.38,13.94]
[1646608312744,5.853,85.443,85.38,13.94]
[1646608312944,17.5716,85.44,85.38,31.5136]
[1646608313145,5.854,85.439,85.38,31.5136]
[1646608315247,17.5716,85.44,85.38,31.5136]
[1646608317448,17.5716,85.44,85.38,31.0136]
[1646608318050,5.854,85.439,85.38,31.0136]
[1646608321152,1.941,85.439,85.38,31.0136]
[1646608321555,1.942,85.443,85.38,31.0136]
[1646608322252,35.07759665,85.444,85.381,5.854]
[1646608322652,35.07759665,85.444,85.39,17.5714]
[1646608322853,17.5714,85.44,85.39,17.5714]
[1646608324956,5.853,85.439,85.39,17.5714]
[1646608325156,1.3653582,85.42,85.39,17.5714]
[1646608325656,10.9153582,85.42,85.383,5.854]
[1646608325858,27.9904582,85.42,85.367,5.854]
[1646608326058,27.9904582,85.42,85.347,5.855]
[1646608326357,27.9904582,85.42,85.34,13.94]
[1646608326358,27.9904582,85.42,85.341,5.855]
[1646608326558,5.855,85.419,85.346,64.40045858]
[1646608326761,5.855,85.419,85.35,17.5781]
[1646608326959,17.5781,85.41,85.351,24.5556]
[1646608327159,35.07759665,85.409,85.352,5.855]
[1646608328159,35.07759665,85.409,85.36,17.5776]
[1646608328359,35.07759665,85.409,85.361,51.94080559]
[1646608328559,35.07759665,85.409,85.352,5.855]
[1646608329159,5.855,85.408,85.352,5.855]
[1646608329561,35.07759665,85.409,85.37,17.5738]
[1646608329859,35.07759665,85.409,85.352,5.855]
[1646608330059,44.11759665,85.409,85.352,5.855]
[1646608330360,5.855,85.408,85.323,72.8807]
[1646608330560,117.0,85.407,85.324,48.4707]
[1646608330759,118.54193586,85.407,85.324,48.4707]
[1646608330966,117.0,85.399,85.324,48.4707]
[1646608331160,117.0,85.397,85.324,48.4707]
[1646608331361,117.0,85.395,85.324,48.4707]
[1646608331562,117.0,85.395,85.28,13.94]
[1646608331865,1.54193586,85.387,85.29,13.94]
[1646608332060,117.0,85.379,85.31,17.5877]
[1646608332261,152.07759665,85.377,85.31,17.5877]
[1646608332461,117.0,85.375,85.291,23.7127]
[1646608332662,117.0,85.373,85.291,23.7127]
[1646608332861,117.0,85.371,85.291,23.7127]
[1646608333060,0.8653582,85.333,85.291,23.7127]
[1646608333272,17.5956,85.32,85.27,17.5944]
[1646608333461,5.862,85.332,85.27,17.5944]
[1646608333662,48.98832088,85.331,85.27,17.5944]
[1646608333862,5.861,85.33,85.27,17.5944]
[1646608334364,55.44832088,85.331,85.27,17.5944]
[1646608336161,17.5938,85.33,85.27,17.5944]
[1646608336762,24.1638,85.33,85.27,17.5944]
[1646608337261,6.57,85.33,85.27,17.5944]
[1646608337462,5.861,85.329,85.27,17.5944]
[1646608337663,5.861,85.329,85.271,51.8454158]
[1646608338063,5.861,85.33,85.28,17.5939]
[1646608338269,48.98832088,85.331,85.28,17.5939]
[1646608342170,0.8653582,85.289,85.28,17.5939]
[1646608342368,0.0053582,85.289,85.281,0.87214987]
[1646608348800,8.6753582,85.289,85.281,0.87214987]
[1646608349098,8.6753582,85.289,85.282,0.09476909]
[1646608349298,8.6753582,85.289,85.27,17.5961]
[1646608349907,8.6753582,85.289,85.271,58.45926562]
[1646608350102,0.0053582,85.289,85.271,58.45926562]
[1646608350302,0.0053582,85.289,85.272,5.863]
[1646608351203,0.0053582,85.289,85.273,117.0]
[1646608351404,0.0053582,85.289,85.275,117.0]
[1646608351804,0.0053582,85.289,85.271,58.45926562]
[1646608353007,0.0053582,85.289,85.271,60.29820814]
[1646608353207,0.0053582,85.289,85.272,117.0]
[1646608353604,0.0053582,85.289,85.273,5.863]
[1646608354905,0.0053582,85.289,85.273,5.363]
[1646608355307,0.0053582,85.289,85.272,117.0]
[1646608356808,0.0053582,85.289,85.273,5.863]
[1646608359507,0.0053582,85.289,85.273,5.363]
[1646608359706,0.0053582,85.289,85.272,117.0]
[1646608361711,0.0053582,85.289,85.273,5.863]
[1646608363210,0.0053582,85.289,85.27,17.5961]
[1646608363412,0.0053582,85.289,85.25,1.83894252]
[1646608363611,0.0053582,85.289,85.25,15.77894252]
[1646608363811,0.0053582,85.289,85.251,5.863]
[1646608364211,0.0053582,85.289,85.256,63.44643729]
[1646608364412,0.0053582,85.289,85.257,5.863]
[1646608364813,0.0053582,85.289,85.259,24.4227]
[1646608365214,0.0053582,85.289,85.26,17.5961]
[1646608365418,0.0053582,85.289,85.259,24.4227]
[1646608365614,8.4853582,85.289,85.259,24.4227]
[1646608365915,38.09829587,85.288,85.259,24.4227]
[1646608366616,38.09829587,85.288,85.26,17.5971]
[1646608367420,38.09829587,85.288,85.24,13.94]
[1646608367716,38.09829587,85.288,85.24,31.5414]
[1646608368118,38.09829587,85.288,85.241,5.864]
[1646608368920,38.09829587,85.288,85.241,5.364]
[1646608369124,38.09829587,85.288,85.221,5.864]
[1646608369322,38.09829587,85.288,85.222,117.0]
[1646608369537,5.864,85.287,85.222,118.83894252]
[1646608369922,17.6039,85.28,85.222,117.0]
[1646608370323,5.865,85.279,85.211,5.865]
[1646608370528,5.865,85.279,85.197,1.83894252]
[1646608370529,29.6291,85.279,85.197,1.83894252]
[1646608370722,141.9588,85.278,85.197,1.83894252]
[1646608370923,1.54193586,85.273,85.197,1.83894252]
[1646608371124,117.0,85.259,85.197,1.83894252]
[1646608371322,5.865,85.258,85.18,17.6128]
[1646608371523,29.3073,85.258,85.181,5.865]
[1646608371952,5.867,85.265,85.179,24.36716252]
[1646608372149,28.55711298,85.257,85.191,57.82824332]
[1646608372448,145.55711298,85.257,85.19,17.6117]
[1646608372645,5.865,85.256,85.19,17.6117]
[1646608373247,17.6102,85.25,85.19,17.6117]
[1646608373449,122.867,85.249,85.17,5.865]
[1646608373649,122.867,85.249,85.168,24.36716252]
[1646608374248,122.867,85.249,85.169,57.33533878]
[1646608374449,38.09829587,85.229,85.17,17.616]
[1646608374648,46.57829587,85.229,85.17,41.98316252]
[1646608374849,46.57829587,85.229,85.17,19.25814635]
[1646608375054,5.868,85.228,85.156,23.75291292]
[1646608375251,125.29964848,85.228,85.151,5.868]
[1646608375449,17.6178,85.22,85.143,23.75291292]
[1646608375655,17.6178,85.22,85.144,46.85083902]
[1646608375848,8.29964848,85.228,85.144,46.85083902]
[1646608376049,2.43164848,85.227,85.145,122.868]
[1646608376248,2.43164848,85.227,85.15,142.65957958]
[1646608376447,5.868,85.245,85.164,0.83894252]
[1646608376651,117.0,85.239,85.164,0.83894252]
[1646608376848,117.0,85.237,85.148,0.83894252]
[1646608377049,117.0,85.237,85.131,23.92563958]
[1646608377251,117.0,85.235,85.132,5.869]
[1646608377449,117.0,85.235,85.131,23.92563958]
[1646608377450,117.0,85.229,85.131,23.92563958]
[1646608377650,117.0,85.219,85.118,76.06966529]
[1646608377849,117.0,85.217,85.118,76.06966529]
[1646608378252,117.0,85.215,85.104,117.0]
[1646608378450,117.0,85.213,85.105,5.871]
[1646608378653,117.0,85.209,85.103,5.871]
[1646608378851,117.0,85.207,85.103,5.871]
[1646608379051,117.0,85.205,85.103,3.871]
[1646608379251,117.0,85.201,85.104,62.81742634]
[1646608379451,5.871,85.2,85.11,17.626]
[1646608379652,5.871,85.2,85.11,148.566]
[1646608379854,31.85581793,85.202,85.111,5.871]
[1646608380054,48.8594,85.217,85.113,0.53072748]
[1646608380253,5.87,85.216,85.115,117.0]
[1646608380454,5.87,85.235,85.117,117.0]
[1646608380653,5.87,85.235,85.118,0.66626777]
[1646608380857,19.81,85.27,85.132,0.66626777]
[1646608381053,41.20562728,85.234,85.133,202.5193]
[1646608381255,41.20562728,85.234,85.134,0.66626777]
[1646608381455,41.20562728,85.234,85.165,1.08117214]
[1646608381655,117.0,85.259,85.166,5.868]
[1646608381855,17.6146,85.24,85.166,5.868]
[1646608382156,17.6146,85.24,85.165,1.08117214]
[1646608382157,5.868,85.239,85.165,1.08117214]
[1646608382554,34.98379811,85.238,85.166,51.41749665]
[1646608382755,5.868,85.237,85.167,117.0]
[1646608382958,27.50054756,85.306,85.167,117.0]
[1646608382959,53.5026,85.27,85.171,117.0]
[1646608383156,53.5026,85.27,85.173,117.0]
[1646608383357,53.5026,85.27,85.175,117.0]
[1646608383555,53.5026,85.27,85.177,117.0]
[1646608383758,36.13663989,85.269,85.19,13.94]
[1646608383957,5.865,85.268,85.191,54.69011829]
[1646608384155,5.865,85.268,85.191,61.56865889]
[1646608384355,5.865,85.268,85.192,6.8785406]
[1646608384554,5.865,85.268,85.193,0.66626777]
[1646608384756,5.865,85.268,85.192,6.8785406]
[1646608384955,5.865,85.268,85.194,6.8785406]
[1646608385356,5.865,85.268,85.191,54.69011829]
[1646608386559,2.42612111,85.267,85.191,54.69011829]
[1646608386956,117.0,85.265,85.191,54.69011829]
[1646608387156,5.865,85.264,85.191,54.69011829]
[1646608387357,117.0,85.262,85.191,5.865]
[1646608387556,117.0,85.259,85.191,5.865]
[1646608387756,125.6,85.259,85.191,5.865]
[1646608388057,117.0,85.257,85.191,5.865]
[1646608388257,7.79375279,85.255,85.192,60.34610357]
[1646608388856,7.79375279,85.255,85.191,5.865]
[1646608389059,2.4222544,85.254,85.191,5.865]
[1646608389257,2.4222544,85.254,85.167,24.02397376]
[1646608389558,119.4222544,85.254,85.167,24.02397376]
[1646608389756,119.4222544,85.254,85.168,57.79814048]
[1646608389957,117.0,85.252,85.168,57.79814048]
[1646608390157,2.4222544,85.253,85.168,57.79814048]
[1646608390158,2.4222544,85.253,85.17,17.615]
[1646608390757,2.4222544,85.253,85.17,134.615]
[1646608390963,7.79375279,85.255,85.181,47.82812574]
[1646608391157,7.79375279,85.255,85.2,17.6041]
[1646608391560,7.79375279,85.255,85.199,57.02028739]
[1646608391857,17.23375279,85.255,85.199,57.02028739]
[1646608392057,5.865,85.254,85.182,7.71748312]
[1646608392357,117.0,85.249,85.168,6.8785406]
[1646608392558,117.0,85.247,85.168,6.8785406]
[1646608392758,5.867,85.248,85.168,6.8785406]
[1646608392759,122.867,85.248,85.168,6.8785406]
[1646608392958,5.867,85.248,85.168,6.8785406]
[1646608393159,5.867,85.254,85.169,54.79375908]
[1646608393358,5.867,85.254,85.17,17.6157]
[1646608393562,5.867,85.269,85.171,117.0]
[1646608393760,5.867,85.269,85.172,0.08952684]
[1646608393962,117.0,85.268,85.172,0.83894252]
[1646608394259,117.0,85.268,85.2,17.6078]
[1646608394460,5.867,85.269,85.2,17.6078]
[1646608394661,36.03536301,85.267,85.201,57.7144946]
[1646608395069,5.865,85.266,85.201,57.7144946]
[1646608395261,5.865,85.266,85.18,72.6324]
[1646608395561,117.0,85.259,85.173,31.3422406]
[1646608395762,5.867,85.258,85.173,31.3422406]
[1646608395961,117.0,85.263,85.173,31.3422406]
[1646608396164,36.03536301,85.267,85.174,6.8785406]
[1646608396361,36.03536301,85.267,85.175,181.05079576]
[1646608396561,36.03536301,85.267,85.181,117.0]
[1646608396762,36.03536301,85.267,85.191,117.0]
[1646608396962,36.03536301,85.267,85.191,58.01993954]
[1646608397163,47.6346,85.27,85.191,58.01993954]
[1646608397361,47.6346,85.27,85.192,7.21748312]
[1646608397562,5.865,85.269,85.2,17.603]
[1646608397763,14.755,85.269,85.2,17.603]
[1646608398163,39.40049826,85.268,85.2,17.603]
[1646608398364,5.865,85.267,85.2,17.603]
[1646608399264,5.865,85.267,85.201,0.83894252]
[1646608399464,5.865,85.267,85.22,17.603]
[1646608399666,1.54193586,85.28,85.22,17.603]
[1646608399867,1.54193586,85.288,85.22,17.603]
[1646608400166,46.4456,85.303,85.22,134.603]
[1646608400167,1.54193586,85.292,85.22,134.603]
[1646608400369,1.54193586,85.292,85.222,117.0]
[1646608400567,12.50504725,85.293,85.241,54.51344482]
[1646608401166,46.4456,85.303,85.241,54.51344482]
[1646608402167,31.8671493,85.302,85.25,17.5987]
[1646608402971,5.863,85.301,85.25,17.5987]
[1646608403567,5.863,85.309,85.25,17.5987]
[1646608403971,5.863,85.312,85.25,17.5987]
[1646608404368,5.863,85.313,85.25,17.5987]
[1646608404569,5.863,85.316,85.25,17.5987]
[1646608404968,5.863,85.317,85.25,17.5987]
[1646608405367,5.863,85.318,85.25,17.5987]
[1646608405568,11.59803602,85.315,85.25,17.5987]
[1646608405768,5.863,85.314,85.25,17.5987]
[1646608406369,117.0,85.313,85.25,17.5987]
[1646608406574,117.0,85.311,85.223,23.9652]
[1646608406773,8.8453582,85.289,85.223,23.9652]
[1646608407172,2.4222544,85.288,85.223,23.9652]
[1646608407373,32.33235666,85.287,85.209,46.55784506]
[1646608407574,32.33235666,85.287,85.192,78.2476]
[1646608407575,122.865,85.286,85.192,78.2476]
[1646608407774,125.2872544,85.286,85.192,78.2476]
[1646608407974,17.6071,85.28,85.192,78.2476]
[1646608408176,5.865,85.279,85.192,78.2476]
[1646608408374,1.54193586,85.277,85.192,78.2476]
[1646608408574,5.865,85.276,85.193,54.21343237]
[1646608408775,5.865,85.276,85.2,17.6104]
[1646608408974,2.4222544,85.278,85.2,17.6104]
[1646608409377,11.59803602,85.274,85.2,17.6104]
[1646608409576,5.865,85.273,85.2,17.6104]
[1646608410180,117.0,85.272,85.2,17.6104]
[1646608410378,117.0,85.27,85.2,17.6104]
[1646608410581,117.0,85.268,85.2,17.6104]
[1646608410786,5.865,85.269,85.158,28.01267416]
[1646608410787,117.0,85.259,85.158,28.01267416]
[1646608410987,118.54193586,85.257,85.159,47.307]
[1646608411185,1.54193586,85.253,85.159,47.307]
[1646608411384,117.0,85.251,85.159,47.307]
[1646608411591,117.0,85.249,85.159,47.307]
[1646608411792,117.0,85.239,85.143,48.60190276]
[1646608411986,38.20035666,85.248,85.143,48.60190276]
[1646608411987,117.0,85.229,85.143,48.60190276]
[1646608412186,117.0,85.227,85.143,48.60190276]
[1646608412385,117.0,85.227,85.14,13.94]
[1646608412386,0.51336223,85.209,85.14,13.94]
[1646608412587,5.87,85.208,85.132,47.307]
[1646608412787,117.0,85.207,85.131,75.1376]
[1646608412988,17.6243,85.2,85.131,75.1376]
[1646608413202,5.87,85.199,85.131,75.1376]
[1646608413400,149.33235666,85.198,85.131,75.1376]
[1646608413603,32.33235666,85.198,85.131,75.1376]
[1646608414200,0.51336223,85.209,85.131,75.1376]
[1646608414799,5.87,85.208,85.131,75.1376]
[1646608415000,14.6,85.208,85.131,75.1376]
[1646608415200,5.87,85.208,85.141,64.67712393]
[1646608415401,0.51336223,85.209,85.141,64.67712393]
[1646608415601,5.87,85.208,85.141,64.67712393]
[1646608415800,5.87,85.208,85.131,98.11067608]
[1646608416000,117.0,85.207,85.131,75.1376]
[1646608416202,117.0,85.205,85.161,2.16473798]
[1646608416400,117.0,85.199,85.161,2.16473798]
[1646608416600,122.869,85.198,85.161,2.16473798]
[1646608416801,31.05391543,85.197,85.161,2.16473798]
[1646608417400,39.35391543,85.197,85.161,2.16473798]
[1646608417601,17.6269,85.19,85.161,2.16473798]
[1646608417803,5.87,85.189,85.161,2.16473798]
[1646608418208,31.05391543,85.197,85.161,2.16473798]
[1646608418402,5.869,85.196,85.161,2.16473798]
[1646608418605,117.0,85.195,85.11,13.94]
[1646608418805,117.0,85.193,85.11,13.94]
[1646608419006,117.0,85.191,85.11,13.94]
[1646608419203,117.0,85.189,85.11,13.94]
[1646608419406,117.0,85.187,85.089,22.13413356]
[1646608419709,117.0,85.187,85.081,24.9202]
[1646608419710,117.0,85.177,85.081,24.9202]
[1646608419906,117.0,85.175,85.081,24.9202]
[1646608420106,5.873,85.174,85.081,24.9202]
[1646608420307,5.873,85.175,85.081,24.9202]
[1646608420508,13.05803549,85.178,85.081,24.9202]
[1646608420710,0.18155824,85.178,85.09,17.6313]
[1646608420910,5.873,85.177,85.09,31.5713]
[1646608421108,5.873,85.177,85.09,148.5713]
[1646608421309,5.873,85.177,85.09,31.5713]
[1646608421511,0.51336223,85.17,85.09,31.5713]
[1646608421709,36.41911729,85.168,85.091,48.26886224]
[1646608421910,5.873,85.167,85.163,1.08177055]
[1646608422113,2.07366539,85.166,85.163,1.08177055]
[1646608422416,5.87,85.165,85.11,17.6272]